fUSD/lending_fUSD_20240225
["ID","MTS","AMOUNT","RATE_DAILY","PERIOD"]
[315122649,1708861840955,-49451.124488,0.00024991,2]
[315122650,1708861841700,-83647.31321062,0.00024991,2]
[315122651,1708861841729,-775.599825,0.00024991,2]
[315122652,1708861841740,-385.60551237,0.00024991,2]
[315122653,1708861841771,-372.3015982,0.00024991,2]
[315122667,1708861843347,-2653.15058789,0.00024991,2]
[315122669,1708861843360,-18815.57234306,0.00024991,2]
[315122671,1708861843370,-250.0,0.00024998,2]
[315122673,1708861843379,-436.93610474,0.00024999,2]
[315122674,1708861843389,-198.999999,0.00025,2]
[315122675,1708861843399,-1250.0,0.00025,3]
[315122676,1708861843408,-1000.0,0.00025007,2]
[315122677,1708861843417,-150.0,0.0002502,2]
[315122678,1708861843425,-250.0,0.00025044,2]
[315122679,1708861843434,-164.91,0.00025126,2]
[315122680,1708861843443,-500.0,0.00025132,2]
[315122681,1708861843455,-385.00645296,0.00025205,2]
[315122682,1708861843466,-154.37,0.00025283,2]
[315122683,1708861843476,-158.39,0.00025292,2]
[315122684,1708861843485,-222.14,0.00025314,2]
[315122685,1708861843494,-329.94,0.0002542,2]
[315122686,1708861843503,-264.32903149,0.00025638,2]
[315122687,1708861843512,-174.0,0.00025845,2]
[315122688,1708861843521,-158.39,0.00025925,2]
[315122689,1708861843530,-150.0,0.00026079,2]
[315122690,1708861843539,-330.02,0.00026086,2]
[315122691,1708861843548,-638.04,0.0002612,2]
[315122692,1708861843557,-800.0,0.00026278,2]
[315122693,1708861843567,-200.0,0.00026278,2]
[315122694,1708861843576,-200.0,0.00026278,2]
[315122695,1708861843585,-500.0,0.000263,2]
[315122696,1708861843594,-309.4004,0.00026345,2]
[315122697,1708861843603,-264.32903149,0.00026377,2]
[315122698,1708861843612,-543.07344559,0.00026378,2]
[315122699,1708861843621,-728.37,0.00026378,2]
[315122701,1708861843630,-185.93645124,0.00026379,2]
[315122702,1708861843639,-618.63,0.00026379,2]
[315122704,1708861843649,-724.3,0.00026379,2]
[315122705,1708861843658,-500.0,0.00026379,2]
[315122706,1708861843668,-671.8,0.00026379,2]
[315122707,1708861843677,-729.85,0.00026379,2]
[315122708,1708861843686,-29.44151154,0.00026379,2]
[315122711,1708861843702,-594.54848846,0.00026379,2]
[315122713,1708861843711,-1283.57,0.00026379,2]
[315122715,1708861843721,-1003.65,0.00026379,2]
[315122717,1708861843730,-1359.28910862,0.00026379,2]
[315122719,1708861843739,-1486.93,0.00026379,2]
[315122721,1708861843749,-817.06,0.00026379,2]
[315122723,1708861843758,-202.36877766,0.00026379,2]
[315122725,1708861843773,-1014.00122234,0.00026379,2]
[315122728,1708861843782,-500.0,0.00026379,2]
[315122730,1708861843791,-1146.84,0.00026379,2]
[315122731,1708861843801,-500.0,0.00026379,2]
[315122732,1708861843810,-585.59,0.00026379,2]
[315122733,1708861843819,-624.99,0.00026379,2]
[315122734,1708861843828,-758.57,0.00026379,2]
[315122735,1708861843838,-500.0,0.00026379,2]
[315122736,1708861843847,-2666.3659,0.00026379,2]
[315122737,1708861843857,-1359.28910856,0.0002639,2]
[315122738,1708861843866,-6599.07,0.00026393,2]
[315122739,1708861843876,-551.86,0.00026393,2]
[315122740,1708861843885,-500.0,0.00026393,2]
[315122741,1708861843894,-500.0,0.00026393,2]
[315122742,1708861843904,-500.0,0.00026393,2]
[315122743,1708861843913,-500.0,0.00026393,2]
[315122744,1708861843925,-500.0,0.00026393,2]
[315122745,1708861843934,-6446.33,0.00026393,2]
[315122746,1708861843944,-500.0,0.00026393,2]
[315122747,1708861843953,-504.84,0.00026393,2]
[315122748,1708861843963,-988.11,0.00026393,2]
[315122749,1708861843973,-1147.5,0.00026393,2]
[315122750,1708861843982,-958.99,0.00026393,2]
[315122751,1708861843992,-578.0,0.00026393,2]
[315122752,1708861844001,-1000.0,0.000264,6]
[315122753,1708861844010,-55555.0,0.000264,2]
[315122754,1708861844019,-150.0,0.000264,2]
[315122755,1708861844028,-1359.28910856,0.00026401,2]
[315122756,1708861844038,-500.0,0.00026406,2]
[315122757,1708861844047,-500.0,0.00026406,2]
[315122758,1708861844056,-500.0,0.00026406,2]
[315122759,1708861844065,-500.0,0.00026406,2]
[315122760,1708861844074,-511.01792394,0.00026406,2]
[315122761,1708861844084,-526.48984451,0.00026406,2]
[315122762,1708861844093,-500.0,0.00026406,2]
[315122763,1708861844102,-548.27025936,0.00026406,2]
[315122764,1708861844111,-500.0,0.00026406,2]
[315122765,1708861844120,-500.0,0.00026406,2]
[315122766,1708861844129,-500.0,0.00026406,2]
[315122767,1708861844138,-524.75843019,0.00026406,2]
[315122768,1708861844148,-500.0,0.00026406,2]
[315122769,1708861844157,-524.86471512,0.00026406,2]
[315122770,1708861844165,-500.0,0.00026406,2]
[315122771,1708861844174,-500.0,0.00026406,2]
[315122772,1708861844183,-510.07070347,0.00026406,2]
[315122773,1708861844193,-506.72640508,0.00026406,2]
[315122774,1708861844202,-519.36576266,0.00026406,2]
[315122775,1708861844211,-520.02797348,0.00026406,2]
[315122776,1708861844220,-516.0540566,0.00026406,2]
[315122777,1708861844229,-166.66701569,0.00026406,2]
[315122778,1708861844238,-500.0,0.00026406,2]
[315122779,1708861844247,-515.34567545,0.00026406,2]
[315122780,1708861844257,-307.88970672,0.00026406,2]
[315122781,1708861844266,-500.0,0.00026406,2]
[315122782,1708861844275,-500.0,0.00026406,2]
[315122783,1708861844284,-500.0,0.00026406,2]
[315122784,1708861844294,-500.0,0.00026406,2]
[315122785,1708861844303,-500.0,0.00026406,2]
[315122786,1708861844312,-502.38281162,0.00026406,2]
[315122787,1708861844321,-500.0,0.00026406,2]
[315122788,1708861844330,-500.0,0.00026406,2]
[315122789,1708861844339,-516.58667704,0.00026406,2]
[315122790,1708861844348,-500.0,0.00026406,2]
[315122791,1708861844357,-500.0,0.00026406,2]
[315122792,1708861844366,-555.34548423,0.00026406,2]
[315122793,1708861844375,-507.47859102,0.00026406,2]
[315122794,1708861844385,-500.0,0.00026406,2]
[315122795,1708861844394,-523.50082215,0.00026406,2]
[315122796,1708861844403,-515.72776467,0.00026406,2]
[315122797,1708861844412,-517.53161833,0.00026406,2]
[315122798,1708861844421,-500.0,0.00026406,2]
[315122799,1708861844430,-512.05186264,0.00026406,2]
[315122800,1708861844439,-500.0,0.00026406,2]
[315122801,1708861844448,-514.41309886,0.00026406,2]
[315122802,1708861844457,-500.0,0.00026406,2]
[315122803,1708861844466,-517.83380108,0.00026406,2]
[315122804,1708861844476,-500.0,0.00026406,2]
[315122805,1708861844485,-584.67324753,0.00026406,2]
[315122806,1708861844494,-500.0,0.00026406,2]
[315122807,1708861844503,-179.57579206,0.00026406,2]
[315122808,1708861844513,-500.0,0.00026406,2]
[315122809,1708861844525,-261.06708004,0.00026406,2]
[315122810,1708861844535,-510.45719141,0.00026406,2]
[315122811,1708861844546,-500.0,0.00026406,2]
[315122812,1708861844555,-500.0,0.00026406,2]
[315122813,1708861844563,-500.0,0.00026406,2]
[315122814,1708861844573,-500.0,0.00026406,2]
[315122815,1708861844582,-500.0,0.00026406,2]
[315122816,1708861844591,-578.33083281,0.00026406,2]
[315122817,1708861844600,-500.98715851,0.00026406,2]
[315122818,1708861844609,-500.0,0.00026406,2]
[315122819,1708861844618,-523.13838002,0.00026406,2]
[315122820,1708861844627,-509.86147119,0.00026406,2]
[315122821,1708861844637,-500.0,0.00026406,2]
[315122822,1708861844646,-842.98,0.00026406,2]
[315122823,1708861844655,-582.01041227,0.00026406,2]
[315122824,1708861844664,-509.19730847,0.00026406,2]
[315122825,1708861844674,-500.0,0.00026406,2]
[315122826,1708861844683,-512.80791127,0.00026406,2]
[315122827,1708861844692,-505.71264303,0.00026406,2]
[315122828,1708861844702,-297.52029277,0.00026406,2]
[315122829,1708861844711,-500.0,0.00026406,2]
[315122830,1708861844720,-512.013907,0.00026406,2]
[315122831,1708861844729,-508.07859172,0.00026406,2]
[315122832,1708861844738,-500.0,0.00026406,2]
[315122833,1708861844748,-500.0,0.00026406,2]
[315122834,1708861844757,-500.0,0.00026406,2]
[315122835,1708861844766,-500.0,0.00026406,2]
[315122836,1708861844775,-500.0,0.00026406,2]
[315122837,1708861844784,-500.0,0.00026406,2]
[315122838,1708861844794,-565.60624392,0.00026406,2]
[315122839,1708861844804,-503.00747971,0.00026406,2]
[315122840,1708861844814,-500.0,0.00026406,2]
[315122841,1708861844823,-500.0,0.00026406,2]
[315122842,1708861844832,-500.0,0.00026406,2]
[315122843,1708861844842,-500.0,0.00026406,2]
[315122844,1708861844852,-500.0,0.00026406,2]
[315122845,1708861844861,-511.40274974,0.00026406,2]
[315122846,1708861844870,-520.91099127,0.00026406,2]
[315122847,1708861844879,-504.21055178,0.00026406,2]
[315122848,1708861844888,-1359.28910856,0.00026412,2]
[315122849,1708861844898,-152.0,0.00026418,4]
[315122850,1708861844907,-1359.28910856,0.00026423,2]
[315122851,1708861844917,-1359.28910856,0.00026434,2]
[315122852,1708861844929,-9107.26529208,0.00026445,2]
[315122853,1708861844946,-1034.62119839,0.00026445,2]
[315122854,1708861844955,-4112.700102,0.00026445,2]
[315122855,1708861844964,-1790.18581983,0.00026445,2]
[315122856,1708861844974,-3521.93017766,0.00026445,2]
[315122857,1708861844984,-1359.28910856,0.00026445,2]
[315122858,1708861844993,-1359.28910856,0.00026456,2]
[315122859,1708861845002,-162.0,0.00026461,2]
[315122860,1708861845011,-1359.28910856,0.00026467,2]
[315122861,1708861845021,-728.37,0.00026476,2]
[315122862,1708861845030,-539.91043884,0.00026477,2]
[315122863,1708861845039,-6599.07,0.00026477,2]
[315122864,1708861845048,-6599.07,0.00026477,2]
[315122865,1708861845057,-1349.86651561,0.00026477,2]
[315122866,1708861845086,-5249.20348439,0.00026477,2]
[315122867,1708861845096,-618.63,0.00026477,2]
[315122868,1708861845105,-618.63,0.00026477,2]
[315122869,1708861845114,-618.63,0.00026477,2]
[315122870,1708861845123,-618.63,0.00026477,2]
[315122871,1708861845132,-618.63,0.00026477,2]
[315122872,1708861845141,-618.63,0.00026477,2]
[315122873,1708861845151,-6599.07,0.00026477,2]
[315122874,1708861845160,-6599.07,0.00026477,2]
[315122875,1708861845170,-6599.07,0.00026477,2]
[315122876,1708861845180,-724.3,0.00026477,2]
[315122877,1708861845189,-724.3,0.00026477,2]
[315122878,1708861845198,-724.3,0.00026477,2]
[315122879,1708861845208,-724.3,0.00026477,2]
[315122880,1708861845217,-724.3,0.00026477,2]
[315122881,1708861845226,-724.3,0.00026477,2]
[315122882,1708861845236,-500.0,0.00026477,2]
[315122883,1708861845246,-500.0,0.00026477,2]
[315122884,1708861845256,-500.0,0.00026477,2]
[315122885,1708861845266,-500.0,0.00026477,2]
[315122886,1708861845275,-500.0,0.00026477,2]
[315122887,1708861845284,-395.40032327,0.00026477,2]
[315122888,1708861845293,-551.86,0.00026477,2]
[315122889,1708861845305,-551.86,0.00026477,2]
[315122890,1708861845316,-551.86,0.00026477,2]
[315122891,1708861845325,-551.86,0.00026477,2]
[315122892,1708861845335,-551.86,0.00026477,2]
[315122893,1708861845346,-551.86,0.00026477,2]
[315122894,1708861845355,-671.8,0.00026477,2]
[315122895,1708861845364,-671.8,0.00026477,2]
[315122896,1708861845373,-671.8,0.00026477,2]
[315122897,1708861845382,-671.8,0.00026477,2]
[315122898,1708861845392,-671.8,0.00026477,2]
[315122899,1708861845401,-671.8,0.00026477,2]
[315122900,1708861845410,-500.0,0.00026477,2]
[315122901,1708861845419,-500.0,0.00026477,2]
[315122902,1708861845428,-500.0,0.00026477,2]
[315122903,1708861845437,-500.0,0.00026477,2]
[315122904,1708861845448,-500.0,0.00026477,2]
[315122905,1708861845458,-500.0,0.00026477,2]
[315122906,1708861845468,-729.85,0.00026477,2]
[315122907,1708861845477,-729.85,0.00026477,2]
[315122908,1708861845486,-729.85,0.00026477,2]
[315122909,1708861845495,-729.85,0.00026477,2]
[315122910,1708861845505,-729.85,0.00026477,2]
[315122911,1708861845514,-729.85,0.00026477,2]
[315122912,1708861845523,-500.0,0.00026477,2]
[315122913,1708861845532,-500.0,0.00026477,2]
[315122914,1708861845541,-500.0,0.00026477,2]
[315122915,1708861845551,-529.67760104,0.00026477,2]
[315122916,1708861845560,-623.99,0.00026477,2]
[315122917,1708861845569,-623.99,0.00026477,2]
[315122918,1708861845579,-623.99,0.00026477,2]
[315122919,1708861845587,-623.99,0.00026477,2]
[315122920,1708861845597,-623.99,0.00026477,2]
[315122921,1708861845608,-500.0,0.00026477,2]
[315122922,1708861845617,-623.99,0.00026477,2]
[315122923,1708861845626,-500.0,0.00026477,2]
[315122924,1708861845636,-500.0,0.00026477,2]
[315122925,1708861845646,-500.0,0.00026477,2]
[315122926,1708861845656,-500.0,0.00026477,2]
[315122927,1708861845665,-500.0,0.00026477,2]
[315122928,1708861845674,-500.0,0.00026477,2]
[315122929,1708861845683,-500.0,0.00026477,2]
[315122930,1708861845693,-500.0,0.00026477,2]
[315122931,1708861845702,-500.0,0.00026477,2]
[315122932,1708861845712,-500.0,0.00026477,2]
[315122933,1708861845721,-500.0,0.00026477,2]
[315122934,1708861845731,-1283.57,0.00026477,2]
[315122935,1708861845741,-1283.57,0.00026477,2]
[315122936,1708861845751,-1283.57,0.00026477,2]
[315122937,1708861845761,-1283.57,0.00026477,2]
[315122938,1708861845770,-1283.57,0.00026477,2]
[315122939,1708861845780,-1283.57,0.00026477,2]
[315122940,1708861845790,-500.0,0.00026477,2]
[315122941,1708861845800,-500.0,0.00026477,2]
[315122942,1708861845810,-500.0,0.00026477,2]
[315122943,1708861845820,-500.0,0.00026477,2]
[315122944,1708861845830,-500.0,0.00026477,2]
[315122945,1708861845840,-500.0,0.00026477,2]
[315122946,1708861845849,-6446.33,0.00026477,2]
[315122947,1708861845859,-6446.33,0.00026477,2]
[315122948,1708861845869,-6446.33,0.00026477,2]
[315122949,1708861845879,-1003.65,0.00026477,2]
[315122950,1708861845889,-6446.33,0.00026477,2]
[315122951,1708861845899,-1003.65,0.00026477,2]
[315122952,1708861845909,-6446.33,0.00026477,2]
[315122953,1708861845918,-1003.65,0.00026477,2]
[315122954,1708861845931,-6446.33,0.00026477,2]
[315122955,1708861845942,-1003.65,0.00026477,2]
[315122956,1708861845956,-1003.65,0.00026477,2]
[315122957,1708861845966,-1003.65,0.00026477,2]
[315122958,1708861845976,-500.0,0.00026477,2]
[315122959,1708861845986,-500.0,0.00026477,2]
[315122960,1708861845996,-500.0,0.00026477,2]
[315122961,1708861846006,-1486.93,0.00026477,2]
[315122962,1708861846016,-500.0,0.00026477,2]
[315122963,1708861846027,-1486.93,0.00026477,2]
[315122964,1708861846037,-1486.93,0.00026477,2]
[315122965,1708861846047,-1486.93,0.00026477,2]
[315122966,1708861846056,-500.0,0.00026477,2]
[315122967,1708861846066,-1486.93,0.00026477,2]
[315122968,1708861846076,-500.0,0.00026477,2]
[315122969,1708861846086,-1486.93,0.00026477,2]
[315122970,1708861846095,-504.84,0.00026477,2]
[315122971,1708861846107,-504.84,0.00026477,2]
[315122972,1708861846116,-817.06,0.00026477,2]
[315122973,1708861846126,-504.84,0.00026477,2]
[315122974,1708861846135,-817.06,0.00026477,2]
[315122975,1708861846145,-504.84,0.00026477,2]
[315122976,1708861846155,-817.06,0.00026477,2]
[315122977,1708861846165,-504.84,0.00026477,2]
[315122978,1708861846175,-817.06,0.00026477,2]
[315122979,1708861846185,-504.84,0.00026477,2]
[315122980,1708861846194,-817.06,0.00026477,2]
[315122981,1708861846204,-817.06,0.00026477,2]
[315122982,1708861846214,-1216.37,0.00026477,2]
[315122984,1708861846224,-1216.37,0.00026477,2]
[315122985,1708861846234,-1216.37,0.00026477,2]
[315122986,1708861846243,-1216.37,0.00026477,2]
[315122987,1708861846253,-988.11,0.00026477,2]
[315122988,1708861846263,-1216.37,0.00026477,2]
[315122989,1708861846273,-988.11,0.00026477,2]
[315122990,1708861846284,-1216.37,0.00026477,2]
[315122991,1708861846294,-988.11,0.00026477,2]
[315122992,1708861846304,-988.11,0.00026477,2]
[315122993,1708861846314,-988.11,0.00026477,2]
[315122994,1708861846325,-988.11,0.00026477,2]
[315122995,1708861846335,-500.0,0.00026477,2]
[315122996,1708861846344,-500.0,0.00026477,2]
[315122997,1708861846354,-500.0,0.00026477,2]
[315122998,1708861846364,-500.0,0.00026477,2]
[315122999,1708861846373,-500.0,0.00026477,2]
[315123000,1708861846383,-161.08050535,0.00026477,2]
[315123001,1708861846397,-1146.84,0.00026477,2]
[315123002,1708861846407,-1147.5,0.00026477,2]
[315123003,1708861846417,-1146.84,0.00026477,2]
[315123004,1708861846426,-1147.5,0.00026477,2]
[315123005,1708861846437,-1146.84,0.00026477,2]
[315123006,1708861846446,-1147.5,0.00026477,2]
[315123007,1708861846456,-1146.84,0.00026477,2]
[315123008,1708861846466,-1147.5,0.00026477,2]
[315123009,1708861846476,-1146.84,0.00026477,2]
[315123010,1708861846485,-1147.5,0.00026477,2]
[315123011,1708861846495,-1146.84,0.00026477,2]
[315123012,1708861846505,-1147.5,0.00026477,2]
[315123013,1708861846515,-500.0,0.00026477,2]
[315123014,1708861846525,-500.0,0.00026477,2]
[315123015,1708861846534,-500.0,0.00026477,2]
[315123016,1708861846545,-500.0,0.00026477,2]
[315123017,1708861846555,-500.0,0.00026477,2]
[315123025,1708861846849,-500.0,0.00026477,2]
[315123027,1708861846859,-958.99,0.00026477,2]
[315123029,1708861846870,-958.99,0.00026477,2]
[315123031,1708861846879,-958.99,0.00026477,2]
[315123033,1708861846889,-958.99,0.00026477,2]
[315123035,1708861846898,-585.59,0.00026477,2]
[315123037,1708861846907,-958.99,0.00026477,2]
[315123039,1708861846920,-585.59,0.00026477,2]
[315123041,1708861846930,-958.99,0.00026477,2]
[315123043,1708861846939,-585.59,0.00026477,2]
[315123044,1708861846949,-585.59,0.00026477,2]
[315123045,1708861846960,-624.99,0.00026477,2]
[315123046,1708861846970,-585.59,0.00026477,2]
[315123047,1708861846980,-624.99,0.00026477,2]
[315123048,1708861846990,-585.59,0.00026477,2]
[315123049,1708861847001,-624.99,0.00026477,2]
[315123050,1708861847012,-624.99,0.00026477,2]
[315123051,1708861847022,-624.99,0.00026477,2]
[315123052,1708861847032,-624.99,0.00026477,2]
[315123053,1708861847041,-151.0,0.00026477,7]
[315123054,1708861847050,-151.0,0.00026477,7]
[315123055,1708861847061,-151.0,0.00026477,7]
[315123056,1708861847070,-151.0,0.00026477,7]
[315123057,1708861847080,-758.57,0.00026477,2]
[315123058,1708861847089,-578.0,0.00026477,2]
[315123059,1708861847099,-758.57,0.00026477,2]
[315123060,1708861847109,-758.57,0.00026477,2]
[315123061,1708861847119,-758.57,0.00026477,2]
[315123062,1708861847128,-758.57,0.00026477,2]
[315123063,1708861847138,-758.57,0.00026477,2]
[315123064,1708861847147,-151.0,0.00026477,7]
[315123065,1708861847158,-500.0,0.00026477,2]
[315123066,1708861847167,-500.0,0.00026477,2]
[315123067,1708861847177,-500.0,0.00026477,2]
[315123068,1708861847186,-151.0,0.00026477,7]
[315123069,1708861847196,-578.0,0.00026477,2]
[315123070,1708861847206,-578.0,0.00026477,2]
[315123071,1708861847215,-578.0,0.00026477,2]
[315123072,1708861847225,-578.0,0.00026477,2]
[315123073,1708861847235,-578.0,0.00026477,2]
[315123074,1708861847245,-500.0,0.00026477,2]
[315123075,1708861847255,-728.37,0.00026477,2]
[315123076,1708861847264,-500.0,0.00026477,2]
[315123077,1708861847274,-500.0,0.00026477,2]
[315123078,1708861847283,-728.37,0.00026477,2]
[315123079,1708861847293,-151.0,0.00026477,7]
[315123080,1708861847303,-195.710498,0.00026477,7]
[315123081,1708861847312,-151.0,0.00026477,7]
[315123082,1708861847321,-649596.97977973,0.00026478,4]
[315123083,1708861848024,-390.58050857,0.00026476,2]
[315123084,1708861848041,-225.23965564,0.00026476,2]
[315123085,1708861848051,-881.38196436,0.00026478,4]
[315123086,1708861848072,-1470.49144556,0.00026478,4]
[315123087,1708861848083,-2566.95,0.00026478,4]
[315123088,1708861848879,-360.45183548,0.00026478,4]
[315123089,1708861848891,-60501.44782137,0.00026478,4]
[315123090,1708861848914,-1421.64390508,0.00026478,4]
[315123093,1708862117990,199.92,0.00023548,2]
[315123095,1708862633949,189.92,0.00023449,2]
[315123110,1708863031640,-307.13537821,0.00024199,2]
[315123111,1708863031695,-308.684786,0.00024199,2]
[315123112,1708863031705,-207.0,0.000242,2]
[315123113,1708863031714,-166.26,0.00024932,2]
[315123114,1708863031726,-738.29667341,0.00025,2]
[315123115,1708863031737,-738.29667341,0.00025,2]
[315123116,1708863031748,-738.29667341,0.00025,2]
[315123117,1708863031759,-738.29667341,0.00025,2]
[315123118,1708863031768,-738.29667341,0.00025,2]
[315123119,1708863031777,-738.29667341,0.00025,2]
[315123120,1708863031787,-738.29667341,0.00025,2]
[315123121,1708863031796,-738.29667341,0.00025,2]
[315123122,1708863031805,-155.0,0.00025077,2]
[315123123,1708863031815,-1228.95401863,0.0002509,2]
[315123124,1708863031826,-274.95,0.00025285,2]
[315123125,1708863031836,-248.22,0.00025294,2]
[315123126,1708863031845,-3531.0,0.000253,3]
[315123127,1708863031854,-220.02,0.0002533,2]
[315123128,1708863031864,-164.91,0.00025369,2]
[315123129,1708863031873,-1000.0,0.00025442,2]
[315123130,1708863031883,-189.92,0.00025713,2]
[315123131,1708863031893,-38064.70780808,0.00026,2]
[315123132,1708863031918,-3453.04291343,0.00026,2]
[315123141,1708863037698,-1628.10150466,0.00026,2]
[315123142,1708863037710,-3101.4,0.00026,2]
[315123143,1708863037722,-2104.61588216,0.00026,2]
[315123144,1708863037733,-8160.40998295,0.00026,2]
[315123145,1708863037768,-402.80938869,0.00026,2]
[315123146,1708863037784,-9000.332137,0.00026,2]
[315123147,1708863037796,-584.79030233,0.00026,2]
[315123148,1708863037812,-3046.74718517,0.00026,2]
[315123151,1708863037824,-4776.63159816,0.00026,2]
[315123153,1708863037840,-395.2299961,0.00026,2]
[315123154,1708863037852,-751.41281411,0.00026,2]
[315123155,1708863037864,-741.27723955,0.00026,2]
[315123156,1708863037877,-420.8888349,0.00026,2]
[315123157,1708863037889,-313.89851893,0.00026,2]
[315123161,1708863040066,-1521.8,0.00026,2]
[315123162,1708863040078,-271.01,0.00026,2]
[315123163,1708863040212,-1550.995,0.00026,2]
[315123164,1708863040398,-9122.64982579,0.00026,2]
[315123335,1708863042683,-106511.4491867,0.00026,2]
[315123336,1708863042692,-150.0,0.00026218,2]
[315123337,1708863042702,-26872.5563,0.00026276,2]
[315123338,1708863042711,-156.73944284,0.00026277,2]
[315123339,1708863042720,-536.73300934,0.00026305,2]
[315123340,1708863042729,-1763.10706988,0.00026305,2]
[315123341,1708863042738,-191.93557123,0.00026305,2]
[315123342,1708863042747,-156.73944284,0.0002631,2]
[315123343,1708863042757,-478.54,0.0002632,2]
[315123344,1708863042766,-156.73944284,0.00026343,2]
[315123345,1708863042775,-536.73300932,0.00026352,2]
[315123346,1708863042785,-1763.10706988,0.00026352,2]
[315123347,1708863042794,-272.7973343,0.00026362,2]
[315123348,1708863042803,-4781.35,0.00026375,2]
[315123349,1708863042812,-500.0,0.00026375,2]
[315123350,1708863042821,-1310.69,0.00026375,2]
[315123351,1708863042831,-513.04,0.00026375,2]
[315123352,1708863042840,-500.0,0.00026375,2]
[315123353,1708863042849,-516.98,0.00026375,2]
[315123354,1708863042859,-500.0,0.00026375,2]
[315123355,1708863042868,-500.0,0.00026375,2]
[315123356,1708863042877,-500.0,0.00026375,2]
[315123357,1708863042886,-500.0,0.00026375,2]
[315123358,1708863042895,-909.19,0.00026375,2]
[315123359,1708863042904,-4761.82,0.00026375,2]
[315123360,1708863042914,-500.0,0.00026375,2]
[315123361,1708863042923,-710.92,0.00026375,2]
[315123362,1708863042932,-500.0,0.00026375,2]
[315123363,1708863042941,-1053.24,0.00026375,2]
[315123364,1708863042950,-690.7,0.00026375,2]
[315123365,1708863042959,-599.58,0.00026375,2]
[315123366,1708863042968,-839.66,0.00026375,2]
[315123367,1708863042977,-902.17,0.00026375,2]
[315123368,1708863042987,-700.12,0.00026375,2]
[315123369,1708863042996,-500.0,0.00026375,2]
[315123370,1708863043006,-849.03,0.00026375,2]
[315123371,1708863043015,-500.0,0.00026375,2]
[315123372,1708863043024,-500.0,0.00026375,2]
[315123373,1708863043033,-500.0,0.00026375,2]
[315123374,1708863043043,-500.0,0.00026375,2]
[315123375,1708863043052,-861.45,0.00026375,2]
[315123376,1708863043061,-558.16,0.00026375,2]
[315123377,1708863043070,-1395.35,0.00026375,2]
[315123378,1708863043079,-500.0,0.00026375,2]
[315123379,1708863043089,-500.0,0.00026375,2]
[315123380,1708863043098,-3595.23,0.00026375,2]
[315123381,1708863043108,-500.0,0.00026375,2]
[315123382,1708863043117,-627.81,0.00026376,2]
[315123383,1708863043126,-500.0,0.00026376,2]
[315123384,1708863043136,-500.0,0.00026376,2]
[315123385,1708863043146,-500.0,0.00026376,2]
[315123386,1708863043155,-500.0,0.00026376,2]
[315123387,1708863043165,-531.75878045,0.00026376,2]
[315123388,1708863043174,-500.0,0.00026376,2]
[315123389,1708863043184,-518.50165466,0.00026376,2]
[315123390,1708863043194,-500.0,0.00026376,2]
[315123391,1708863043204,-503.14608339,0.00026376,2]
[315123392,1708863043213,-504.2813446,0.00026376,2]
[315123393,1708863043222,-502.76203123,0.00026376,2]
[315123394,1708863043232,-500.0,0.00026376,2]
[315123395,1708863043241,-500.0,0.00026376,2]
[315123396,1708863043250,-529.03,0.00026376,2]